bitfinex/quotes_SOLUSD_20260114
["timestamp","ask_amount","ask_price","bid_price","bid_amount"]
[1768389162486,0.70873807,144.25,144.2,2.74119126]
[1768389162996,0.70873807,144.25,144.21,0.67450167]
[1768389165492,0.70873807,144.25,144.19,2.06668959]
[1768389165493,0.69396269,144.24,144.2,0.67450167]
[1768389166696,0.69396269,144.22,144.18,0.67450167]
[1768389168691,0.69396269,144.22,144.18,2.74119126]
[1768389168891,2.76065228,144.22,144.16,0.67450167]
[1768389169191,2.06668959,144.27,144.16,0.67450167]
[1768389169192,0.69396269,144.21,144.16,2.74119126]
[1768389169397,2.06668959,144.22,144.17,0.67450167]
[1768389169983,2.06668959,144.23,144.18,0.67450167]
[1768389170177,2.06668959,144.24,144.19,0.67450167]
[1768389170790,12.64,144.28,144.19,0.67450167]
[1768389171102,2.06668959,144.25,144.2,0.67450167]
[1768389171402,0.69396269,144.24,144.19,2.74119126]
[1768389171791,0.69396269,144.24,144.2,0.67450167]
[1768389172303,0.69396269,144.24,144.2,2.74119126]
[1768389172480,0.69396269,144.24,144.2,0.67450167]
[1768389173384,0.69396269,144.25,144.2,0.67450167]
[1768389173584,2.76065228,144.25,144.2,0.67450167]
[1768389174899,2.76065228,144.24,144.2,0.67450167]
[1768389175101,2.76065228,144.23,144.18,0.67450167]
[1768389175578,0.69396269,144.22,144.18,0.67450167]
[1768389176231,0.69396269,144.22,144.17,2.74119126]
[1768389176905,0.69396269,144.25,144.21,0.67450167]
[1768389177106,0.69396269,144.25,144.21,2.74119126]
[1768389179007,0.69396269,144.27,144.22,0.67450167]
[1768389179184,0.69396269,144.27,144.21,2.06668959]
[1768389179386,0.69396269,144.27,144.21,2.74119126]
[1768389179789,0.69396269,144.27,144.22,2.06668959]
[1768389180294,2.06668959,144.3,144.24,2.74119126]
[1768389180504,0.69396269,144.29,144.25,2.06668959]
[1768389180707,0.69396269,144.29,144.25,0.67450167]
[1768389180909,0.69396269,144.26,144.2,0.67450167]
[1768389181223,2.06668959,144.27,144.22,0.67450167]
[1768389181506,2.06668959,144.27,144.2,2.74119126]
[1768389182993,0.69396269,144.26,144.2,2.74119126]
[1768389183896,0.15482171,144.25,144.2,0.67450167]
[1768389184591,0.69396269,144.29,144.23,2.74119126]
[1768389184790,0.69396269,144.29,144.24,2.74119126]
[1768389186208,2.76065228,144.29,144.25,0.680872]
[1768389186814,0.69396269,144.29,144.25,0.680872]
[1768389187694,2.7558693,144.31,144.26,0.680872]
[1768389187905,0.15955686,144.3,144.26,0.680872]
[1768389188214,0.15955686,144.3,144.25,2.74756159]
[1768389188619,2.22624645,144.3,144.25,0.680872]
[1768389189118,12.64,144.32,144.2,2.06668959]
[1768389189119,0.16480013,144.28,144.24,0.680872]
[1768389193019,0.16480013,144.28,144.21,0.680872]
[1768389193323,0.6736051,144.25,144.2,2.74756159]
[1768389193931,0.6736051,144.25,144.21,0.680872]
[1768389194929,0.6736051,144.25,144.21,2.74756159]
[1768389195116,33.44,144.32,144.21,2.74756159]
[1768389195117,0.68388348,144.27,144.22,0.680872]
[1768389197424,2.06668959,144.28,144.23,0.680872]
[1768389197621,0.68388348,144.27,144.23,0.680872]
[1768389201417,2.06668959,144.28,144.23,0.680872]
[1768389201828,2.20417844,144.28,144.23,0.680872]
[1768389203515,2.20986086,144.26,144.21,0.66675905]
[1768389204033,0.70010522,144.25,144.21,0.66675905]
[1768389204424,0.71147063,144.26,144.22,0.66675905]
[1768389204622,2.77816022,144.28,144.22,0.66675905]
[1768389204827,0.13748885,144.27,144.22,0.66675905]
[1768389205838,2.20417844,144.27,144.22,0.66675905]
[1768389206021,0.70573081,144.26,144.22,0.66675905]
[1768389206540,0.71147063,144.27,144.22,0.66675905]
[1768389206741,2.77816022,144.27,144.22,0.66675905]
[1768389207535,0.13748885,144.26,144.22,0.66675905]
[1768389208037,2.77816022,144.27,144.22,0.66675905]
[1768389209137,0.71147063,144.27,144.22,0.66675905]
[1768389209341,0.13748885,144.26,144.22,0.66675905]
[1768389209845,2.77816022,144.28,144.22,0.66675905]
[1768389210521,0.13748885,144.27,144.22,0.66675905]
[1768389212544,0.70573081,144.26,144.21,0.66675905]
[1768389214536,0.70573081,144.26,144.22,0.66675905]
[1768389215941,0.65805358,144.28,144.23,3.92083693]
[1768389217347,0.65805358,144.28,144.24,0.69160051]
[1768389217944,0.19037173,144.29,144.24,0.69160051]
[1768389218151,0.19037173,144.29,144.24,3.22923642]
[1768389218344,0.65805358,144.3,144.25,0.69160051]
[1768389218525,0.65805358,144.3,144.26,0.69160051]
[1768389222849,3.88729,144.31,144.26,0.69160051]
[1768389223643,3.88729,144.31,144.2,72.52205411]
[1768389223644,3.22923642,144.28,144.24,0.69160051]
[1768389223850,3.87802943,144.27,144.21,0.69160051]
[1768389224032,3.22923642,144.26,144.22,0.69160051]
[1768389224349,3.87802943,144.27,144.22,0.69160051]
[1768389226052,3.22923642,144.26,144.22,0.69160051]
[1768389226534,3.87802943,144.27,144.22,0.69160051]
[1768389227250,3.42877611,144.26,144.22,0.69160051]
[1768389230654,0.19953969,144.26,144.22,0.69160051]
[1768389230867,3.42877611,144.26,144.22,0.69160051]
[1768389233658,0.64430048,144.25,144.22,0.69160051]
[1768389234861,0.65805358,144.31,144.25,0.69160051]
[1768389235154,12.64,144.32,144.25,0.69160051]
[1768389235155,0.19037173,144.29,144.25,0.69160051]
[1768389236963,0.65805358,144.31,144.25,3.92083693]
[1768389237170,0.19037173,144.3,144.26,0.69160051]
[1768389239064,3.41960815,144.3,144.26,0.69160051]
[1768389239648,0.19037173,144.3,144.26,0.69160051]
[1768389241460,3.41960815,144.3,144.26,0.69160051]
[1768389241662,0.65337676,144.29,144.26,0.69160051]
[1768389243171,3.88729,144.3,144.26,0.69160051]
[1768389245571,0.65805358,144.3,144.26,0.69160051]
[1768389247158,0.70577586,144.31,144.27,0.70711664]
[1768389247347,12.64,144.32,144.28,0.70711664]
[1768389248266,15.86923642,144.32,144.28,0.70711664]
[1768389248864,0.1486969,144.31,144.26,3.93635306]
[1768389249070,0.1486969,144.31,144.27,0.70711664]
[1768389249271,16.01236309,144.32,144.27,0.70711664]
[1768389250477,0.70014937,144.31,144.27,0.70711664]
[1768389250676,3.92938579,144.3,144.21,7.69281769]
[1768389250878,3.22923642,144.29,144.25,0.70711664]
[1768389252277,3.92938579,144.3,144.25,0.70711664]
[1768389252770,3.92387126,144.28,144.25,0.70711664]
[1768389253162,3.22923642,144.28,144.25,0.70711664]
[1768389253363,3.93501228,144.29,144.25,0.70711664]
[1768389255665,0.14312667,144.28,144.23,0.70711664]
[1768389255985,3.92938579,144.27,144.23,0.70711664]
[1768389256164,0.67384916,144.27,144.23,0.70711664]
[1768389259082,0.1486969,144.26,144.23,0.70711664]
[1768389259268,3.90754852,144.27,144.23,0.70711664]
[1768389259778,0.14427859,144.26,144.23,0.70711664]
[1768389259956,0.14427859,144.26,144.22,0.68056984]
[1768389260161,0.14427859,144.26,144.22,3.90980626]
[1768389260362,0.6783121,144.27,144.23,0.68056984]
[1768389260860,0.6783121,144.27,144.22,3.22923642]
[1768389261080,0.6783121,144.27,144.24,0.68056984]
[1768389261281,0.6783121,144.28,144.24,0.68056984]
[1768389261497,0.6783121,144.28,144.24,3.90980626]
[1768389261871,0.6783121,144.28,144.25,0.68056984]
[1768389262163,0.14427859,144.29,144.25,0.68056984]
[1768389262694,3.22923642,144.3,144.25,0.68056984]
[1768389262879,3.37351501,144.3,144.25,0.68056984]
[1768389263867,13.3183121,144.32,144.25,0.68056984]
[1768389264069,0.67297176,144.3,144.25,0.68056984]
[1768389264276,3.22923642,144.31,144.25,0.68056984]
[1768389265288,0.67297176,144.3,144.25,0.68056984]
[1768389265465,3.22923642,144.3,144.25,0.68056984]
[1768389266373,3.22923642,144.31,144.26,0.68056984]
[1768389268181,3.22923642,144.3,144.26,0.68056984]
[1768389268673,3.22923642,144.29,144.26,0.68056984]
[1768389268873,3.22923642,144.28,144.26,0.68056984]
[1768389269269,3.22923642,144.28,144.23,0.68056984]
[1768389271576,0.6677377,144.27,144.22,0.68056984]
[1768389272686,3.37351501,144.28,144.22,0.68056984]
[1768389272883,3.22923642,144.27,144.22,0.68056984]
[1768389274803,0.14427859,144.28,144.22,0.68056984]
[1768389274983,3.22923642,144.27,144.22,0.68056984]
[1768389275178,0.14427859,144.28,144.22,0.68056984]
[1768389275382,2.06656204,144.27,144.22,0.68056984]
[1768389275786,0.14427859,144.28,144.22,0.68056984]
[1768389275988,2.06656204,144.27,144.22,0.68056984]
[1768389276394,2.7352456,144.27,144.22,0.68056984]
[1768389276595,0.15381084,144.26,144.22,0.68056984]
[1768389277399,0.15381084,144.26,144.21,2.06656204]
[1768389277898,2.06656204,144.27,144.22,0.66833132]
[1768389278575,0.66868356,144.29,144.22,0.66833132]
[1768389279996,2.06656204,144.27,144.22,0.66833132]
[1768389280497,2.06656204,144.26,144.22,0.66833132]
[1768389281304,2.06656204,144.25,144.22,0.66833132]
[1768389286098,2.06656204,144.24,144.22,0.66833132]
[1768389287477,2.06656204,144.25,144.22,0.66833132]
[1768389288701,0.66868356,144.31,144.22,0.66833132]
[1768389288891,2.06656204,144.25,144.22,0.66833132]
[1768389289996,0.66353483,144.26,144.22,0.66833132]
[1768389290199,2.06656204,144.25,144.22,0.66833132]
[1768389297409,0.15381084,144.26,144.22,0.66833132]
[1768389297710,2.06656204,144.25,144.22,0.66833132]
[1768389298381,2.06656204,144.26,144.22,0.66833132]
[1768389298600,2.22037288,144.26,144.22,0.66833132]
[1768389299289,0.15381084,144.26,144.22,0.66833132]
[1768389300202,2.22037288,144.26,144.22,0.66833132]
[1768389300508,0.66353483,144.25,144.22,0.66833132]
[1768389300813,2.06656204,144.23,144.18,0.66833132]
[1768389301016,0.65354272,144.21,144.16,10.42771105]
[1768389301219,1.85562931,144.22,144.17,0.66833132]
[1768389301505,2.06656204,144.22,144.17,0.66833132]
[1768389301684,2.06656204,144.2,144.15,0.66833132]
[1768389302410,2.06656204,144.21,144.15,0.66833132]
[1768389302584,2.06656204,144.19,144.15,0.66833132]
[1768389302790,2.06656204,144.2,144.15,0.66833132]
[1768389303199,0.07050533,144.21,144.15,0.66833132]
[1768389303402,2.06656204,144.2,144.15,0.66833132]
[1768389305797,2.13706737,144.2,144.15,0.66833132]
[1768389307007,2.06656204,144.21,144.16,0.69165219]
[1768389307309,0.07050533,144.22,144.16,0.69165219]
[1768389307310,2.13706737,144.22,144.17,0.69165219]
[1768389308202,2.06656204,144.21,144.17,0.69165219]
[1768389309110,0.07050533,144.22,144.17,0.69165219]
[1768389309412,2.06656204,144.21,144.17,0.69165219]
[1768389309801,0.07050533,144.22,144.17,0.69165219]
[1768389309996,2.06656204,144.21,144.17,0.69165219]
[1768389310216,2.13706737,144.21,144.17,0.69165219]
[1768389310815,0.07050533,144.25,144.18,0.69165219]
[1768389310992,2.13706737,144.22,144.18,0.69165219]
[1768389311393,2.06656204,144.2,144.16,0.69165219]
[1768389311591,2.06656204,144.18,144.13,0.69165219]
[1768389311815,61.9124138,144.25,144.15,0.69165219]
[1768389312012,2.06656204,144.2,144.15,0.69165219]
[1768389312720,2.13706737,144.21,144.16,0.69165219]
[1768389313617,2.06656204,144.13,144.11,0.02949467]
[1768389314102,14.70656204,144.14,144.11,0.02949467]
[1768389315898,2.06656204,144.13,144.08,0.69165219]
[1768389316106,14.70656204,144.14,144.09,0.69165219]
[1768389316395,12.64,144.14,144.12,2.06656204]
[1768389316599,14.72656204,144.18,144.13,2.06656204]
[1768389317220,12.66,144.18,144.11,0.69165219]
[1768389317394,2.06656204,144.17,144.11,2.75821423]
[1768389317793,2.06656204,144.18,144.12,2.06656204]
[1768389318205,12.66,144.19,144.11,2.75821423]
[1768389318405,12.66,144.19,144.13,2.06656204]
[1768389318726,12.66,144.19,144.14,2.75821423]
[1768389319021,14.72656204,144.19,144.14,0.69165219]
[1768389319320,2.06656204,144.19,144.14,2.75821423]
[1768389319516,2.06656204,144.2,144.14,2.73882224]
[1768389320005,2.06656204,144.2,144.15,0.6722602]
[1768389320203,2.06656204,144.18,144.15,0.6722602]
[1768389320622,2.06656204,144.18,144.17,2.73882224]
[1768389320798,0.11393616,144.22,144.17,2.73882224]
[1768389320999,2.1804982,144.22,144.17,0.6722602]
[1768389321197,0.11393616,144.22,144.17,2.73882224]
[1768389321398,2.1804982,144.22,144.17,2.73882224]
[1768389322430,12.66,144.24,144.07,0.1]
[1768389322431,0.70991296,144.17,144.07,0.1]
[1768389322719,2.06656204,144.11,144.07,0.1]
[1768389324308,2.06656204,144.12,144.07,0.1]
[1768389324510,0.68734724,144.11,144.07,0.1]
[1768389324722,2.75390928,144.11,144.07,0.1]
[1768389325104,0.68734724,144.11,144.07,0.1]
[1768389327227,2.06656204,144.08,143.99,3.61692495]
[1768389327522,20.8,144.1,144.01,2.97366663]
[1768389327523,3.61731275,144.05,144.01,2.97366663]
[1768389327819,5.68387479,144.05,143.99,2.06656204]
[1768389328024,5.68387479,144.05,144.01,2.06656204]
[1768389328025,3.61731275,144.05,144.01,2.06656204]
[1768389328219,3.61731275,144.05,143.87,0.69507193]
[1768389328412,3.61731275,144.05,144.01,12.66]
[1768389329303,3.61731275,144.05,144.01,14.72656204]
[1768389329502,3.61731275,144.05,144.01,12.66]
[1768389329712,26.48387479,144.05,143.99,0.6722602]
[1768389329920,2.06656204,144.04,144.0,12.66]
[1768389330119,24.41731275,144.05,144.01,2.06656204]
[1768389330120,3.61731275,144.05,144.01,2.06656204]
[1768389330714,5.68387479,144.05,143.99,2.06656204]
[1768389330909,2.06656204,144.04,144.02,12.66]
[1768389331103,2.06656204,144.04,143.99,0.6722602]
[1768389331411,2.06656204,144.04,144.01,12.66]
[1768389333004,4.13312408,144.02,143.9,0.6722602]
[1768389333218,2.06656204,143.97,143.9,0.6722602]
[1768389333418,0.6722602,143.97,143.88,2.06656204]
[1768389333628,2.06656204,143.93,143.89,12.66]
[1768389333814,2.06656204,143.93,143.79,3.62085345]
[1768389334020,2.06656204,143.93,143.87,2.06656204]
[1768389334218,41.6,144.01,143.79,3.62085345]
[1768389334423,2.06656204,143.99,143.8,12.66]
[1768389334728,0.70991296,143.93,143.8,12.66]
[1768389334924,0.70991296,143.91,143.85,2.06656204]
[1768389335131,0.70991296,143.97,143.87,2.06656204]
[1768389335330,3.2439827,143.94,143.87,3.2439827]
[1768389335506,0.67944433,143.96,143.89,0.65469762]
[1768389335833,3.2439827,143.94,143.89,0.65469762]
[1768389336207,0.67944433,143.95,143.9,0.65469762]
[1768389336511,3.2439827,143.94,143.91,0.65469762]
[1768389336699,3.2439827,143.96,143.91,0.65469762]
[1768389336900,0.67944433,143.97,143.91,0.65469762]
[1768389337116,3.2439827,143.96,143.91,0.65469762]
[1768389337326,0.67944433,143.97,143.91,0.65469762]
[1768389337534,3.2439827,143.96,143.91,0.65469762]
[1768389337918,20.8,144.01,143.92,3.2439827]
[1768389338118,3.2439827,143.98,143.93,0.65469762]
[1768389338322,3.92342703,143.99,143.94,0.65469762]
[1768389339118,3.92342703,143.99,143.95,0.65469762]
[1768389339322,0.67944433,143.99,143.96,12.66]
[1768389339634,8.59986156,144.0,143.96,12.66]
[1768389340337,0.67944433,144.01,143.96,12.66]
[1768389340514,8.59986156,144.0,143.96,12.66]
[1768389340829,8.59986156,144.0,143.97,12.66]
[1768389341222,9.27930589,144.01,143.97,12.66]
[1768389341533,0.67944433,144.03,143.97,13.31469762]
[1768389341835,9.27930589,144.02,143.97,13.31469762]
[1768389342443,0.67944433,143.95,143.79,3.62085345]
[1768389342736,0.67944433,143.91,143.86,8.59986156]
[1768389343038,0.67944433,143.93,143.88,8.59986156]
[1768389343231,0.67944433,143.93,143.89,8.59986156]
[1768389343432,0.67944433,143.93,143.9,8.59986156]
[1768389343626,0.67944433,143.95,143.9,8.59986156]
[1768389343829,0.67944433,143.95,143.87,12.66]
[1768389344230,0.67944433,143.95,143.9,8.59986156]
[1768389345826,0.67944433,143.95,143.89,0.65469762]
[1768389346030,0.67944433,143.95,143.9,8.59986156]
[1768389346427,0.67944433,143.95,143.89,0.65469762]
[1768389346622,8.59986156,143.92,143.86,9.25455918]
[1768389346823,0.67944433,143.94,143.89,8.59986156]
[1768389347039,0.67944433,143.94,143.9,8.59986156]
[1768389347222,0.67944433,143.96,143.91,8.59986156]
[1768389347536,9.27930589,143.96,143.92,12.66]
[1768389350625,9.27930589,143.98,143.93,8.59986156]
[1768389351435,0.67944433,143.98,143.94,8.59986156]
[1768389351622,0.67944433,144.01,143.94,8.59986156]
[1768389351823,8.59986156,143.99,143.95,12.66]
[1768389352348,8.59986156,143.99,143.79,20.8]
[1768389352349,0.67944433,143.94,143.77,5.1935066]
[1768389352558,0.67944433,143.84,143.77,5.1935066]
[1768389352728,20.8,143.89,143.79,8.59986156]
[1768389352729,8.59986156,143.85,143.79,8.59986156]
[1768389353046,8.59986156,143.85,143.78,12.66]
[1768389353234,9.27930589,143.85,143.79,12.66]
[1768389353437,0.67944433,143.85,143.77,8.59986156]
[1768389353643,9.27930589,143.84,143.8,12.66]
[1768389353942,0.67944433,143.84,143.79,8.59986156]
[1768389354239,0.67944433,143.85,143.77,0.19334456]
[1768389354447,0.67944433,143.85,143.8,8.59986156]
[1768389354647,9.27930589,143.85,143.79,0.19334456]
[1768389354941,9.27930589,143.85,143.8,12.68]
[1768389355143,9.27930589,143.85,143.81,12.68]
[1768389355330,9.27930589,143.84,143.77,0.19334456]
[1768389355535,0.67944433,143.84,143.79,8.59986156]
[1768389356035,29.39986156,143.9,143.8,12.68]
[1768389356226,9.27930589,143.84,143.81,12.68]
[1768389356422,0.67944433,143.84,143.81,12.68]
[1768389357349,0.67944433,143.84,143.82,12.68]
[1768389357552,0.67944433,143.84,143.8,8.59986156]
[1768389357848,9.27930589,143.87,143.81,21.27986156]
[1768389358048,0.67944433,143.87,143.83,8.59986156]
[1768389358247,0.67944433,143.87,143.84,8.59986156]
[1768389358435,1e-08,143.87,143.84,8.59986156]
[1768389358644,8.59986156,143.96,143.84,9.25455918]
[1768389358950,20.8,143.95,143.84,0.65469762]
[1768389359253,8.59986156,143.9,143.84,9.25455918]
[1768389360128,20.8,143.98,143.84,9.25455918]
[1768389360329,8.59986156,143.9,143.84,9.25455918]
[1768389360751,9.27930589,143.9,143.84,0.65469762]
[1768389360948,9.27930589,143.9,143.84,9.25455918]
[1768389361929,8.59986156,143.88,143.84,0.65469762]
[1768389362253,8.59986156,143.89,143.85,12.68]
[1768389362447,8.53039156,143.89,143.85,12.68]
[1768389362850,9.27930589,143.9,143.85,12.68]
[1768389363033,9.27930589,143.9,143.84,9.25455918]
[1768389363233,9.27930589,143.9,143.85,12.68]
[1768389363448,9.27930589,143.9,143.85,21.27986156]
[1768389363626,0.67944433,143.9,143.85,13.33469762]
[1768389363831,0.67944433,143.9,143.86,8.59986156]
[1768389364030,0.67944433,143.94,143.88,9.25455918]
[1768389364231,9.27930589,143.97,143.92,8.59986156]
[1768389364461,0.67944433,144.02,143.93,21.93455918]
[1768389364630,20.40258156,144.09,143.93,21.93455918]
[1768389364631,9.27930589,144.0,143.95,8.59986156]
[1768389365251,0.67944433,144.0,143.95,8.59986156]
[1768389365452,0.66373527,144.02,143.95,9.25395194]
[1768389365747,9.26359683,144.02,143.97,8.59986156]
[1768389365950,9.26359683,144.02,143.98,12.68]
[1768389366141,0.66373527,144.02,143.98,12.45606535]
[1768389366339,8.59986156,144.01,143.99,12.68]
[1768389366737,8.59986156,144.01,143.96,9.25395194]
[1768389366951,0.66373527,144.02,143.97,12.68]
[1768389367254,8.59986156,144.03,143.98,8.59986156]
[1768389367430,9.26359683,144.04,143.98,9.25395194]
[1768389368748,8.59986156,144.03,143.98,9.25395194]
[1768389369137,0.66373527,144.04,143.99,9.25395194]
[1768389369339,9.26359683,144.04,143.99,9.25395194]
[1768389369538,9.26359683,144.04,143.99,0.65409038]
[1768389369745,9.26359683,144.04,144.0,12.68]
[1768389370050,0.66373527,144.03,144.0,12.68]
[1768389370550,0.66373527,144.03,143.99,8.59986156]
[1768389370752,0.66373527,144.03,144.01,12.68]
[1768389370950,0.66373527,144.03,144.02,12.68]
[1768389371536,0.01056789,144.03,144.02,12.68]
[1768389371758,8.59986156,144.03,143.98,0.65409038]
[1768389371954,7.99442997,144.03,143.99,12.68]
[1768389372152,8.59986156,144.03,143.99,12.68]
[1768389372350,1e-08,144.03,144.0,12.68]
[1768389372747,1e-08,144.03,143.98,9.25395194]
[1768389372956,1e-08,144.03,143.99,12.68]
[1768389373159,8.59986156,144.04,143.99,12.68]
[1768389373334,8.59986156,144.04,144.0,12.68]
[1768389373651,0.66373527,144.03,144.0,12.68]
[1768389373845,8.59986156,144.04,144.01,12.68]
[1768389374164,7.37456993,144.06,143.97,9.25395194]
[1768389374347,8.59986156,144.03,143.98,21.27986156]
[1768389374855,7.37456993,144.06,144.0,9.25395194]
[1768389375242,15.97443149,144.06,144.01,8.59986156]
[1768389375553,8.59986156,144.06,144.02,12.6]
[1768389375761,8.59986156,144.06,144.02,12.54]
[1768389376135,8.73450681,144.06,144.02,12.54]
[1768389376338,8.73450681,144.06,144.02,21.13986156]
[1768389376339,0.13464525,144.06,144.02,21.13986156]
[1768389377034,0.13464525,144.06,144.02,21.07986156]
[1768389377240,0.13464525,144.06,144.02,8.59986156]
[1768389377450,0.13464525,144.06,144.03,12.6]
[1768389378059,8.73450681,144.06,144.01,0.65409038]
[1768389378358,0.13464525,144.06,144.04,11.99490467]
[1768389378664,8.73450681,144.06,144.04,11.93490467]
[1768389379966,0.03464525,144.05,144.04,11.90025942]
[1768389381141,0.03464525,144.05,143.84,16.66]
[1768389381347,9.27514536,143.9,143.84,25.25986156]
[1768389381548,9.27514536,143.9,143.85,21.25986156]
[1768389381549,0.6752838,143.9,143.85,21.25986156]
[1768389381782,0.6752838,143.9,143.85,8.59986156]
[1768389381953,0.6752838,143.9,143.86,12.66]
[1768389382149,0.68692531,143.98,143.88,8.59986156]
[1768389382353,0.099,143.93,143.88,8.59986156]
[1768389382574,0.68692531,143.97,143.88,8.59986156]
[1768389382756,8.69886156,143.95,143.89,8.59986156]
[1768389382961,8.69886156,143.95,143.9,12.66]
[1768389383144,9.28090761,143.94,143.88,0.68692531]
[1768389383349,9.28090761,143.94,143.89,12.66]
[1768389384673,8.59986156,143.93,143.89,12.66]
[1768389384887,8.59986156,143.92,143.9,12.66]
[1768389385961,8.59986156,143.92,143.88,0.68692531]
[1768389386161,8.59986156,143.92,143.91,12.66]
[1768389386968,8.59986156,143.91,143.88,0.68692531]
[1768389387168,8.59986156,143.9,143.85,0.68692531]
[1768389387365,8.59986156,143.9,143.84,25.25986156]
[1768389387366,8.59986156,143.9,143.86,13.34692531]
[1768389387571,0.10482046,143.93,143.87,0.68692531]
[1768389387773,8.59986156,143.91,143.87,0.68692531]
[1768389388079,8.59986156,143.92,143.87,0.68692531]
[1768389388263,0.10482046,143.93,143.87,0.68692531]
[1768389388460,8.59986156,143.93,143.87,0.68692531]
[1768389388855,8.59986156,143.93,143.88,0.68692531]
[1768389390570,0.68692531,143.97,143.88,0.68692531]
[1768389390777,8.59986156,143.94,143.89,0.68692531]
[1768389390959,0.099,143.96,143.91,0.68692531]
[1768389391156,8.59986156,143.95,143.91,0.68692531]
[1768389391573,8.59986156,143.95,143.92,12.68]
[1768389391784,0.68692531,143.98,143.92,13.36692531]
[1768389392095,8.59986156,143.96,143.92,13.36692531]
[1768389392669,8.59986156,143.97,143.93,0.68692531]
[1768389393767,0.68692531,144.0,143.93,0.68692531]
[1768389394175,8.59986156,143.97,143.93,0.68692531]
[1768389395263,8.59986156,143.97,143.91,8.59986156]
[1768389395264,8.59986156,143.97,143.94,0.66585488]
[1768389395480,0.68692531,144.0,143.95,12.68]
[1768389395781,8.59986156,143.97,143.91,8.59986156]
[1768389395979,8.59986156,143.94,143.82,30.12401162]
[1768389396162,8.59986156,143.94,143.88,8.59986156]
[1768389396362,0.68290109,143.95,143.89,12.68]
[1768389396563,8.59986156,143.94,143.89,12.68]
[1768389397384,5.29623382,143.94,143.9,12.68]
[1768389397766,5.29623382,143.94,143.91,0.66585488]
[1768389398085,5.29623382,143.94,143.92,12.68]
[1768389398285,5.29623382,143.95,143.92,12.68]
[1768389398668,0.68290109,143.96,143.92,12.68]
[1768389398987,5.29623382,143.95,143.93,12.68]
[1768389400277,5.29623382,143.94,143.88,5.29623382]
[1768389400481,5.29623382,143.94,143.89,13.34585488]
[1768389400780,5.29623382,143.94,143.9,0.66585488]
[1768389401161,5.97913491,143.95,143.9,0.66585488]
[1768389401767,5.97913491,143.95,143.91,12.68]
[1768389402193,5.97913491,143.95,143.8,5.29623382]
[1768389402194,0.68290109,143.93,143.8,0.66585488]
[1768389402363,5.29623382,143.86,143.79,0.66585488]
[1768389402568,12.68,143.99,143.74,0.4516631]
[1768389402569,5.29623382,143.85,143.8,13.34585488]
[1768389402775,5.29623382,143.85,143.81,0.66585488]
[1768389403287,5.29623382,143.86,143.81,0.66585488]
[1768389403890,20.84,143.93,143.81,0.66585488]
[1768389404081,5.29623382,143.87,143.82,0.66585488]
[1768389404295,0.6698791,143.88,143.82,0.66585488]
[1768389404466,5.29623382,143.87,143.82,0.66585488]
[1768389404979,5.29623382,143.88,143.83,0.66585488]
[1768389407267,5.29623382,143.88,143.84,12.68]
[1768389407494,5.29623382,143.87,143.84,12.68]
[1768389407792,0.099,143.89,143.84,13.34585488]
[1768389408000,5.29623382,143.88,143.84,13.34585488]
[1768389408379,0.099,143.89,143.85,0.66585488]
[1768389408380,5.29623382,143.89,143.85,0.66585488]
[1768389408915,5.29623382,143.9,143.85,0.66585488]
[1768389409477,5.29623382,143.88,143.85,0.66585488]
[1768389409673,5.29623382,143.89,143.85,0.66585488]
[1768389409993,5.29623382,143.89,143.86,12.68]
[1768389410296,5.29623382,143.92,143.87,0.66585488]
[1768389410675,5.29623382,143.93,143.88,12.68]
[1768389411072,5.29623382,143.93,143.88,13.34585488]
[1768389412094,5.29623382,143.92,143.88,13.34585488]
[1768389413806,5.29623382,143.92,143.89,0.66585488]
[1768389414020,5.29623382,143.92,143.89,13.34585488]
[1768389414199,5.29623382,143.93,143.89,13.34585488]
[1768389414389,5.29623382,143.93,143.9,12.68]
[1768389414809,5.29623382,143.92,143.81,0.66585488]
[1768389414997,0.6641703,143.93,143.86,0.66585488]
[1768389414998,5.29623382,143.91,143.86,0.66585488]
[1768389415306,5.29623382,143.91,143.88,0.66585488]
[1768389415609,5.29623382,143.92,143.88,0.66585488]
[1768389418303,5.40088553,143.92,143.89,12.68]
[1768389418686,5.29623382,143.91,143.89,12.68]
[1768389418885,5.29623382,143.92,143.89,12.68]
[1768389419697,5.39523382,143.93,143.89,12.68]
[1768389420492,0.099,143.93,143.89,12.68]
[1768389420694,5.39523382,143.93,143.89,12.68]
[1768389421213,0.099,143.93,143.89,12.68]
[1768389421426,0.6641703,143.92,143.89,12.68]
[1768389421709,5.29623382,143.92,143.9,12.68]
[1768389422805,5.29623382,143.92,143.88,0.66585488]
[1768389423019,5.29623382,143.92,143.89,12.68]
[1768389423195,5.39523382,143.93,143.89,12.68]
[1768389423509,5.39523382,143.93,143.88,5.9620887]
[1768389423702,5.39523382,143.93,143.9,12.68]
[1768389424018,0.099,143.93,143.9,12.68]